lending/lending_fUSD_20240710
["ID","MTS","AMOUNT","RATE_DAILY","PERIOD"]
[331620195,1720585865733,-584.49,0.00013753,2]
[331620196,1720585865742,-1321.33,0.00013753,2]
[331620197,1720585865752,-2349.78,0.00013753,2]
[331620198,1720585865762,-500.0,0.00013753,2]
[331620199,1720585865771,-500.0,0.00013753,2]
[331620200,1720585865781,-3915.02,0.00013753,2]
[331620201,1720585865791,-500.0,0.00013753,2]
[331620202,1720585865801,-189.13416687,0.00013753,2]
[331620203,1720585865810,-2839.81,0.00013753,2]
[331620204,1720585865820,-500.0,0.00013753,2]
[331620205,1720585865829,-1071.86,0.00013753,2]
[331620206,1720585865839,-1103.25,0.00013753,2]
[331620207,1720585865849,-500.0,0.00013753,2]
[331620208,1720585865858,-1200.03,0.00013753,2]
[331620209,1720585865868,-500.0,0.00013753,2]
[331620210,1720585865878,-500.0,0.00013753,2]
[331620211,1720585865887,-500.0,0.00013753,2]
[331620212,1720585865897,-500.0,0.00013753,2]
[331620213,1720585865907,-1389.91,0.00013753,2]
[331620214,1720585865916,-500.0,0.00013753,2]
[331620215,1720585865926,-944.96,0.00013753,2]
[331620216,1720585865936,-897.34,0.00013753,2]
[331620217,1720585865945,-1031.98,0.00013753,2]
[331620218,1720585865955,-673.15,0.00013753,2]
[331620219,1720585865966,-3293.49,0.00013753,2]
[331620220,1720585865976,-3369.51,0.00013753,2]
[331620221,1720585865985,-984.4,0.00013753,2]
[331620222,1720585865995,-2323.58,0.00013753,2]
[331620223,1720585866005,-1418.12,0.00013753,2]
[331620224,1720585866014,-500.0,0.00013753,2]
[331620225,1720585866024,-500.0,0.00013753,2]
[331620226,1720585866033,-500.0,0.00013753,2]
[331620227,1720585866042,-155.28582738,0.00013753,2]
[331620228,1720585866052,-500.0,0.00013753,2]
[331620229,1720585866061,-500.0,0.00013753,2]
[331620230,1720585866070,-1195.01,0.00013753,2]
[331620231,1720585866080,-837.15,0.00013753,2]
[331620232,1720585866089,-500.0,0.00013753,2]
[331620233,1720585866099,-500.0,0.00013753,2]
[331620234,1720585866109,-2063.93,0.00013753,2]
[331620235,1720585866118,-1806.9,0.00013753,2]
[331620236,1720585866127,-1065.36,0.00013753,2]
[331620237,1720585866136,-2148.34,0.00013753,2]
[331620238,1720585866146,-500.0,0.00013753,2]
[331620239,1720585866156,-553.64,0.00013753,2]
[331620240,1720585866165,-2044.0,0.00013753,2]
[331620241,1720585866175,-2043.48,0.00013753,2]
[331620242,1720585866185,-1701.58,0.00013753,2]
[331620243,1720585866195,-500.0,0.00013753,2]
[331620244,1720585866204,-500.0,0.00013753,2]
[331620245,1720585866216,-500.0,0.00013753,2]
[331620246,1720585866225,-1026.79,0.00013753,2]
[331620247,1720585866234,-500.0,0.00013753,2]
[331620248,1720585866243,-1891.65,0.00013753,2]
[331620249,1720585866253,-500.0,0.00013753,2]
[331620250,1720585866262,-1992.52,0.00013753,2]
[331620251,1720585866271,-500.0,0.00013753,2]
[331620252,1720585866280,-2271.67,0.00013753,2]
[331620253,1720585866290,-500.0,0.00013753,2]
[331620254,1720585866299,-500.0,0.00013753,2]
[331620255,1720585866309,-941.27,0.00013753,2]
[331620256,1720585866318,-500.0,0.00013753,2]
[331620257,1720585866328,-771.79,0.00013753,2]
[331620258,1720585866338,-3648.29,0.00013753,2]
[331620259,1720585866348,-1240.51,0.00013753,2]
[331620260,1720585866357,-500.0,0.00013753,2]
[331620261,1720585866368,-500.0,0.00013753,2]
[331620262,1720585866378,-377.82242991,0.00013753,2]
[331620263,1720585866388,-1650.67,0.00013753,2]
[331620264,1720585866399,-728.45,0.00013753,2]
[331620265,1720585866408,-520.45,0.00013753,2]
[331620266,1720585866418,-815.89,0.00013753,2]
[331620267,1720585866428,-500.0,0.00013753,2]
[331620268,1720585866438,-338.73879172,0.00013753,2]
[331620269,1720585866447,-1491.11,0.00013753,2]
[331620270,1720585866456,-1258.32,0.00013753,2]
[331620271,1720585866469,-500.0,0.00013753,2]
[331620272,1720585866478,-551.81,0.00013753,2]
[331620273,1720585866487,-500.0,0.00013753,2]
[331620274,1720585866497,-886.39,0.00013753,2]
[331620275,1720585866506,-1262.7,0.00013753,2]
[331620276,1720585866516,-500.0,0.00013753,2]
[331620277,1720585866525,-500.0,0.00013753,2]
[331620278,1720585866534,-1620.05,0.00013753,2]
[331620279,1720585866544,-500.0,0.00013753,2]
[331620280,1720585866554,-2250.89,0.00013753,2]
[331620281,1720585866564,-3313.25,0.00013753,2]
[331620282,1720585866574,-1742.4,0.00013753,2]
[331620283,1720585866584,-500.0,0.00013753,2]
[331620284,1720585866594,-3176.24,0.00013753,2]
[331620285,1720585866604,-500.0,0.00013753,2]
[331620286,1720585866614,-2119.14,0.00013753,2]
[331620287,1720585866625,-500.0,0.00013753,2]
[331620288,1720585866636,-557.1,0.00013753,2]
[331620289,1720585866646,-500.0,0.00013753,2]
[331620290,1720585866655,-549.52,0.00013753,2]
[331620291,1720585866665,-751.21,0.00013753,2]
[331620292,1720585866675,-500.0,0.00013753,2]
[331620293,1720585866684,-500.0,0.00013753,2]
[331620294,1720585866694,-12798.62,0.00013753,2]
[331620295,1720585866704,-879.3,0.00013753,2]
[331620296,1720585866714,-2288.26,0.00013753,2]
[331620297,1720585866724,-1631.03,0.00013753,2]
[331620298,1720585866734,-500.0,0.00013753,2]
[331620299,1720585866744,-502.87,0.00013753,2]
[331620300,1720585866754,-500.0,0.00013753,2]
[331620301,1720585866763,-2170.04,0.00013753,2]
[331620302,1720585866774,-2051.37,0.00013753,2]
[331620303,1720585866784,-593.27,0.00013753,2]
[331620304,1720585866794,-1385.1,0.00013753,2]
[331620305,1720585866803,-500.0,0.00013753,2]
[331620306,1720585866813,-500.0,0.00013753,2]
[331620307,1720585866823,-1486.22,0.00013753,2]
[331620308,1720585866832,-929.8,0.00013753,2]
[331620309,1720585866933,-1011.77,0.00013753,2]
[331620310,1720585866943,-151.0,0.00013753,2]
[331620311,1720585866952,-2835.59,0.00013753,2]
[331620312,1720585866962,-2422.32,0.00013753,2]
[331620313,1720585866973,-1288.06,0.00013753,2]
[331620314,1720585866982,-500.0,0.00013753,2]
[331620315,1720585866990,-1665.35,0.00013753,2]
[331620316,1720585866999,-567.3,0.00013753,2]
[331620317,1720585867009,-786.37,0.00013753,2]
[331620318,1720585867018,-195.082751,0.00013753,2]
[331620319,1720585867027,-538.38,0.00013753,2]
[331620320,1720585867036,-2291.84,0.00013753,2]
[331620321,1720585867045,-500.0,0.00013753,2]
[331620322,1720585867055,-1711.43,0.00013753,2]
[331620323,1720585867064,-1578.98,0.00013753,2]
[331620324,1720585867073,-500.0,0.00013753,2]
[331620325,1720585867083,-926.41,0.00013753,2]
[331620326,1720585867092,-1520.43,0.00013753,2]
[331620327,1720585867101,-500.0,0.00013753,2]
[331620328,1720585867111,-2062.72,0.00013753,2]
[331620329,1720585867120,-909.33,0.00013753,2]
[331620330,1720585867130,-402.80332802,0.00013753,2]
[331620331,1720585867139,-875.9,0.00013753,2]
[331620332,1720585867149,-2030.76,0.00013753,2]
[331620333,1720585867159,-1802.0,0.00013753,2]
[331620334,1720585867169,-545.33085923,0.00013753,2]
[331620335,1720585867178,-577.5,0.00013753,2]
[331620336,1720585867188,-500.0,0.00013753,2]
[331620337,1720585867198,-2647.91,0.00013753,2]
[331620338,1720585867208,-500.0,0.00013753,2]
[331620339,1720585867224,-1255.67,0.00013753,2]
[331620340,1720585867234,-500.0,0.00013753,2]
[331620341,1720585867244,-1541.28,0.00013753,2]
[331620342,1720585867254,-692.92,0.00013753,2]
[331620343,1720585867265,-500.0,0.00013753,2]
[331620344,1720585867274,-893.14,0.00013753,2]
[331620345,1720585867284,-500.0,0.00013753,2]
[331620346,1720585867293,-500.0,0.00013753,2]
[331620347,1720585867302,-3297.15,0.00013753,2]
[331620348,1720585867311,-1291.69,0.00013753,2]
[331620349,1720585867320,-2756.77,0.00013753,2]
[331620350,1720585867329,-2371.95,0.00013753,2]
[331620351,1720585867338,-1208.98,0.00013753,2]
[331620352,1720585867346,-962.76,0.00013753,2]
[331620353,1720585867355,-1211.34,0.00013753,2]
[331620354,1720585867364,-2665.07,0.00013753,2]
[331620355,1720585867374,-745.66,0.00013753,2]
[331620356,1720585867384,-3041.67,0.00013753,2]
[331620357,1720585867394,-2848.4,0.00013753,2]
[331620358,1720585867403,-2312.36,0.00013753,2]
[331620359,1720585867413,-1809.12,0.00013753,2]
[331620360,1720585867423,-2816.01,0.00013753,2]
[331620361,1720585867433,-1266.82,0.00013753,2]
[331620362,1720585867443,-1442.9,0.00013753,2]
[331620363,1720585867453,-2469.24,0.00013753,2]
[331620364,1720585867466,-1615.77,0.00013753,2]
[331620365,1720585867475,-1772.4,0.00013753,2]
[331620366,1720585867485,-500.0,0.00013753,2]
[331620367,1720585867494,-3289.3,0.00013753,2]
[331620368,1720585867503,-2323.32,0.00013753,2]
[331620369,1720585867512,-2229.26,0.00013753,2]
[331620370,1720585867522,-973.14,0.00013753,2]
[331620371,1720585867532,-500.0,0.00013753,2]
[331620372,1720585867541,-662.43,0.00013753,2]
[331620373,1720585867551,-620.82,0.00013753,2]
[331620374,1720585867561,-597.87,0.00013753,2]
[331620375,1720585867571,-621.94,0.00013753,2]
[331620376,1720585867580,-564.52,0.00013753,2]
[331620377,1720585867590,-5170.51,0.00013753,2]
[331620378,1720585867599,-2161.39,0.00013753,2]
[331620379,1720585867609,-583.46,0.00013753,2]
[331620380,1720585867619,-500.0,0.00013753,2]
[331620381,1720585867629,-2084.9,0.00013753,2]
[331620382,1720585867639,-623.58,0.00013753,2]
[331620383,1720585867649,-500.0,0.00013753,2]
[331620384,1720585867659,-500.0,0.00013753,2]
[331620385,1720585867668,-1098.28,0.00013753,2]
[331620386,1720585867677,-1922.09,0.00013753,2]
[331620387,1720585867686,-500.0,0.00013753,2]
[331620388,1720585867696,-151.0,0.00013753,2]
[331620389,1720585867706,-1751.9,0.00013753,2]
[331620390,1720585867717,-163.62487374,0.00013753,2]
[331620391,1720585867726,-3555.62,0.00013753,2]
[331620392,1720585867735,-500.0,0.00013753,2]
[331620393,1720585867745,-500.0,0.00013753,2]
[331620394,1720585867754,-670.26,0.00013753,2]
[331620395,1720585867763,-1373.39,0.00013753,2]
[331620396,1720585867772,-827.12,0.00013753,2]
[331620397,1720585867781,-609.95,0.00013753,2]
[331620398,1720585867790,-1039.64,0.00013753,2]
[331620399,1720585867799,-1293.89,0.00013753,2]
[331620400,1720585867808,-525.1,0.00013753,2]
[331620401,1720585867817,-2275.24,0.00013753,2]
[331620402,1720585867826,-500.0,0.00013753,2]
[331620403,1720585867835,-2227.83,0.00013753,2]
[331620404,1720585867845,-788.94,0.00013753,2]
[331620405,1720585867854,-1950.08,0.00013753,2]
[331620406,1720585867864,-1593.0,0.00013753,2]
[331620407,1720585867873,-500.0,0.00013753,2]
[331620408,1720585867882,-500.0,0.00013753,2]
[331620409,1720585867892,-1064.21,0.00013753,2]
[331620410,1720585867902,-670.17,0.00013753,2]
[331620411,1720585867911,-702.23,0.00013753,2]
[331620412,1720585867922,-1444.79,0.00013753,2]
[331620413,1720585867931,-500.0,0.00013753,2]
[331620414,1720585867940,-3622.95,0.00013753,2]
[331620415,1720585867950,-955.73,0.00013753,2]
[331620416,1720585867960,-500.0,0.00013753,2]
[331620417,1720585867972,-856.96,0.00013753,2]
[331620418,1720585867981,-891.23,0.00013753,2]
[331620419,1720585867990,-500.0,0.00013753,2]
[331620420,1720585867999,-821.2,0.00013753,2]
[331620421,1720585868008,-500.0,0.00013753,2]
[331620422,1720585868017,-11149.98,0.00013753,2]
[331620423,1720585868027,-711.36,0.00013753,2]
[331620424,1720585868037,-936.23,0.00013753,2]
[331620425,1720585868046,-500.0,0.00013753,2]
[331620426,1720585868056,-1021.6,0.00013753,2]
[331620427,1720585868065,-2577.26,0.00013753,2]
[331620428,1720585868074,-2073.98,0.00013753,2]
[331620429,1720585868083,-500.0,0.00013753,2]
[331620430,1720585868092,-671.65,0.00013753,2]
[331620431,1720585868102,-1493.58,0.00013753,2]
[331620432,1720585868111,-1303.96,0.00013753,2]
[331620433,1720585868120,-500.0,0.00013753,2]
[331620434,1720585868130,-500.0,0.00013753,2]
[331620435,1720585868139,-1604.62,0.00013753,2]
[331620436,1720585868148,-795.46,0.00013753,2]
[331620437,1720585868158,-624.36,0.00013753,2]
[331620438,1720585868167,-500.0,0.00013753,2]
[331620439,1720585868177,-500.0,0.00013753,2]
[331620440,1720585868187,-4673.32,0.00013753,2]
[331620441,1720585868197,-500.0,0.00013753,2]
[331620442,1720585868206,-1036.69,0.00013753,2]
[331620443,1720585868218,-2173.1,0.00013753,2]
[331620444,1720585868228,-616.7,0.00013753,2]
[331620445,1720585868237,-1035.15,0.00013753,2]
[331620446,1720585868247,-1755.14,0.00013753,2]
[331620447,1720585868257,-1399.95,0.00013753,2]
[331620448,1720585868266,-1326.84,0.00013753,2]
[331620449,1720585868275,-1610.08,0.00013753,2]
[331620450,1720585868285,-500.0,0.00013753,2]
[331620451,1720585868294,-500.0,0.00013753,2]
[331620452,1720585868303,-500.0,0.00013753,2]
[331620453,1720585868313,-821.93,0.00013753,2]
[331620454,1720585868322,-500.0,0.00013753,2]
[331620455,1720585868331,-500.0,0.00013753,2]
[331620456,1720585868340,-1053.79,0.00013753,2]
[331620457,1720585868349,-500.0,0.00013753,2]
[331620458,1720585868358,-725.4,0.00013753,2]
[331620459,1720585868368,-1747.16,0.00013753,2]
[331620460,1720585868377,-1819.82,0.00013753,2]
[331620461,1720585868387,-1647.96,0.00013753,2]
[331620462,1720585868395,-500.0,0.00013753,2]
[331620463,1720585868403,-500.0,0.00013753,2]
[331620464,1720585868411,-500.0,0.00013753,2]
[331620465,1720585868420,-1162.41,0.00013753,2]
[331620466,1720585868430,-1523.35,0.00013753,2]
[331620467,1720585868440,-6812.75,0.00013753,2]
[331620468,1720585868449,-2330.7,0.00013753,2]
[331620469,1720585868459,-2422.43,0.00013753,2]
[331620470,1720585868472,-500.0,0.00013753,2]
[331620471,1720585868482,-524.02,0.00013753,2]
[331620472,1720585868491,-500.0,0.00013753,2]
[331620473,1720585868500,-500.0,0.00013753,2]
[331620474,1720585868510,-500.0,0.00013753,2]
[331620475,1720585868520,-500.0,0.00013753,2]
[331620476,1720585868530,-500.0,0.00013753,2]
[331620477,1720585868540,-500.0,0.00013753,2]
[331620478,1720585868549,-1832.2,0.00013753,2]
[331620479,1720585868559,-859.46,0.00013753,2]
[331620480,1720585868567,-2468.37,0.00013753,2]
[331620481,1720585868576,-1199.8,0.00013753,2]
[331620482,1720585868585,-1104.2,0.00013753,2]
[331620483,1720585868594,-500.0,0.00013753,2]
[331620484,1720585868603,-216.33379126,0.00013753,2]
[331620485,1720585868613,-811.35,0.00013753,2]
[331620486,1720585868624,-500.0,0.00013753,2]
[331620487,1720585868633,-500.0,0.00013753,2]
[331620488,1720585868643,-2165.33,0.00013753,2]
[331620489,1720585868652,-4331.32,0.00013753,2]
[331620490,1720585868661,-2646.6,0.00013753,2]
[331620491,1720585868671,-967.9,0.00013753,2]
[331620492,1720585868681,-500.0,0.00013753,2]
[331620493,1720585868690,-500.0,0.00013753,2]
[331620494,1720585868699,-704.3,0.00013753,2]
[331620495,1720585868708,-338.71081518,0.00013753,2]
[331620496,1720585868719,-525.27,0.00013753,2]
[331620497,1720585868728,-1332.13,0.00013753,2]
[331620498,1720585868738,-898.93,0.00013753,2]
[331620499,1720585868747,-582.47,0.00013753,2]
[331620500,1720585868757,-1996.06,0.00013753,2]
[331620501,1720585868767,-151.0,0.00013753,2]
[331620502,1720585868776,-151.0,0.00013753,2]
[331620503,1720585868785,-500.0,0.00013753,2]
[331620504,1720585868794,-3281.86,0.00013753,2]
[331620505,1720585868803,-500.0,0.00013753,2]
[331620506,1720585868812,-500.0,0.00013753,2]
[331620507,1720585868822,-1972.17,0.00013753,2]
[331620508,1720585868831,-303.29887977,0.00013753,2]
[331620509,1720585868842,-924.63,0.00013753,2]
[331620510,1720585868851,-964.12,0.00013753,2]
[331620511,1720585868861,-633.53337618,0.00013753,2]
[331620512,1720585868870,-500.0,0.00013753,2]
[331620513,1720585868879,-500.0,0.00013753,2]
[331620514,1720585868888,-500.0,0.00013753,2]
[331620515,1720585868897,-500.0,0.00013753,2]
[331620516,1720585868907,-500.0,0.00013753,2]
[331620517,1720585868915,-801.39,0.00013753,2]
[331620518,1720585868925,-1369.18,0.00013753,2]
[331620519,1720585868935,-1630.31,0.00013753,2]
[331620520,1720585868944,-1280.27,0.00013753,2]
[331620521,1720585868954,-2864.06,0.00013753,2]
[331620522,1720585868965,-500.0,0.00013753,2]
[331620523,1720585868975,-500.0,0.00013753,2]
[331620524,1720585868984,-500.0,0.00013753,2]
[331620525,1720585868994,-2041.74,0.00013753,2]
[331620526,1720585869004,-861.68,0.00013753,2]
[331620527,1720585869013,-992.21,0.00013753,2]
[331620528,1720585869022,-500.0,0.00013753,2]
[331620529,1720585869031,-500.0,0.00013753,2]
[331620530,1720585869041,-500.0,0.00013753,2]
[331620531,1720585869051,-343.07461692,0.00013764,2]
[331620532,1720585869061,-150.1777291,0.00013764,2]
[331620533,1720585869070,-150.0,0.00013766,2]
[331620534,1720585869079,-343.07461692,0.00013777,2]
[331620535,1720585869088,-150.1777291,0.00013777,2]
[331620536,1720585869097,-150.0,0.00013779,2]
[331620537,1720585869106,-150.0,0.00013781,2]
[331620538,1720585869115,-343.07461692,0.00013789,2]
[331620539,1720585869124,-150.1777291,0.00013789,2]
[331620540,1720585869133,-238.92713038,0.0001379,2]
[331620541,1720585869142,-150.0,0.00013793,2]
[331620542,1720585869151,-37772.7815493,0.00013793,2]
[331620543,1720585869161,-1843.163262,0.00013793,2]
[331620544,1720585869171,-6211.8737661,0.00013793,2]
[331620545,1720585869182,-151.0,0.00013793,2]
[331620546,1720585869191,-151.0,0.00013793,2]
[331620547,1720585869201,-151.0,0.00013793,2]
[331620548,1720585869210,-151.0,0.00013793,2]
[331620549,1720585869223,-151.0,0.00013793,2]
[331620550,1720585869233,-151.0,0.00013793,2]
[331620551,1720585869242,-252.489082,0.00013793,2]
[331620552,1720585869252,-151.0,0.00013793,2]
[331620553,1720585869261,-151.0,0.00013793,2]
[331620554,1720585869271,-4035.22715673,0.00013797,2]
[331620555,1720585869279,-2248.65409072,0.00013799,2]
[331620556,1720585869289,-1269645.04933543,0.000138,2]
[331620557,1720585869298,-2151.28,0.000138,2]
[331620558,1720585869307,-3116.94822518,0.000138,2]
[331620559,1720585869316,-151.0,0.000138,2]
[331620560,1720585869325,-151.0,0.000138,2]
[331620561,1720585869334,-151.0,0.000138,2]
[331620562,1720585869343,-151.0,0.000138,2]
[331620563,1720585869352,-184.05555,0.000138,2]
[331620564,1720585869361,-178.571732,0.000138,2]
[331620565,1720585869370,-178.571732,0.000138,2]
[331620566,1720585869379,-151.0,0.000138,2]
[331620567,1720585869388,-151.0,0.000138,2]
[331620568,1720585869398,-151.0,0.000138,2]
[331620569,1720585869407,-151.0,0.000138,2]
[331620570,1720585869416,-151.0,0.000138,2]
[331620571,1720585869426,-151.0,0.000138,2]
[331620572,1720585869435,-151.0,0.000138,2]
[331620573,1720585869444,-265.401656,0.000138,2]
[331620574,1720585869453,-151.0,0.000138,2]
[331620575,1720585869465,-151.0,0.000138,2]
[331620576,1720585869474,-338.727915,0.000138,2]
[331620577,1720585869483,-151.0,0.000138,2]
[331620578,1720585869492,-151.0,0.000138,2]
[331620579,1720585869501,-151.0,0.000138,2]
[331620580,1720585869511,-343.07461692,0.00013802,2]
[331620581,1720585869520,-150.1777291,0.00013802,2]
[331620582,1720585869530,-150.0,0.00013806,2]
[331620583,1720585869539,-4683.44,0.00013808,2]
[331620584,1720585869548,-500.0,0.00013808,2]
[331620585,1720585869558,-500.0,0.00013808,2]
[331620586,1720585869568,-500.0,0.00013808,2]
[331620587,1720585869578,-500.0,0.00013808,2]
[331620588,1720585869588,-500.0,0.00013808,2]
[331620589,1720585869598,-500.0,0.00013808,2]
[331620590,1720585869607,-500.0,0.00013808,2]
[331620591,1720585869617,-500.0,0.00013808,2]
[331620592,1720585869628,-500.0,0.00013808,2]
[331620593,1720585869638,-500.0,0.00013808,2]
[331620594,1720585869647,-500.0,0.00013808,2]
[331620595,1720585869657,-500.0,0.00013808,2]
[331620596,1720585869666,-500.0,0.00013808,2]
[331620597,1720585869675,-500.0,0.00013808,2]
[331620598,1720585869685,-320.98917471,0.00013808,2]
[331620599,1720585869694,-500.0,0.00013808,2]
[331620600,1720585869703,-500.0,0.00013808,2]
[331620601,1720585869715,-500.0,0.00013808,2]
[331620602,1720585869724,-500.0,0.00013808,2]
[331620603,1720585869733,-500.0,0.00013808,2]
[331620604,1720585869742,-500.0,0.00013808,2]
[331620605,1720585869752,-500.0,0.00013808,2]
[331620606,1720585869762,-500.0,0.00013808,2]
[331620607,1720585869772,-498.48115019,0.00013808,2]
[331620608,1720585869781,-891.21,0.00013808,2]
[331620609,1720585869791,-2448.37,0.00013808,2]
[331620610,1720585869800,-500.0,0.00013808,2]
[331620611,1720585869810,-668.8,0.00013808,2]
[331620612,1720585869819,-500.0,0.00013808,2]
[331620613,1720585869828,-500.0,0.00013808,2]
[331620614,1720585869837,-558.15,0.00013808,2]
[331620615,1720585869848,-1645.83,0.00013808,2]
[331620616,1720585869857,-200.0,0.00013808,2]
[331620617,1720585869868,-1091.94,0.00013808,2]
[331620618,1720585869878,-690.09,0.00013808,2]
[331620619,1720585869888,-586.04,0.00013808,2]
[331620620,1720585869898,-1971.47,0.00013808,2]
[331620621,1720585869908,-500.0,0.00013808,2]
[331620622,1720585869918,-500.0,0.00013808,2]
[331620623,1720585869929,-500.0,0.00013808,2]
[331620624,1720585869940,-905.56,0.00013808,2]
[331620625,1720585869950,-1576.43,0.00013808,2]
[331620626,1720585869960,-500.0,0.00013808,2]
[331620627,1720585869972,-1742.21,0.00013808,2]
[331620628,1720585869982,-1898.95,0.00013808,2]
[331620629,1720585869991,-625.6,0.00013808,2]
[331620630,1720585870001,-725.95,0.00013808,2]
[331620631,1720585870011,-607.2,0.00013808,2]
[331620632,1720585870020,-500.0,0.00013808,2]
[331620633,1720585870031,-500.0,0.00013808,2]
[331620634,1720585870039,-1704.78,0.00013808,2]
[331620635,1720585870049,-579.62,0.00013808,2]
[331620636,1720585870058,-500.0,0.00013808,2]
[331620637,1720585870067,-804.68,0.00013808,2]
[331620638,1720585870077,-1941.95,0.00013808,2]
[331620639,1720585870086,-1093.94,0.00013808,2]
[331620640,1720585870095,-500.0,0.00013808,2]
[331620641,1720585870105,-500.0,0.00013808,2]
[331620642,1720585870114,-897.12,0.00013808,2]
[331620643,1720585870125,-605.18,0.00013808,2]
[331620644,1720585870134,-500.0,0.00013808,2]
[331620645,1720585870144,-500.0,0.00013808,2]
[331620646,1720585870153,-500.0,0.00013808,2]
[331620647,1720585870164,-500.0,0.00013808,2]
[331620648,1720585870173,-656.85,0.00013808,2]
[331620649,1720585870182,-500.0,0.00013808,2]
[331620650,1720585870192,-500.0,0.00013808,2]
[331620651,1720585870202,-500.0,0.00013808,2]
[331620652,1720585870211,-2057.73,0.00013808,2]
[331620653,1720585870224,-500.0,0.00013808,2]
[331620654,1720585870233,-500.0,0.00013808,2]
[331620655,1720585870242,-500.0,0.00013808,2]
[331620656,1720585870251,-823.29,0.00013808,2]
[331620657,1720585870261,-500.0,0.00013808,2]
[331620658,1720585870270,-574.88,0.00013808,2]
[331620659,1720585870279,-500.0,0.00013808,2]
[331620660,1720585870288,-500.0,0.00013808,2]
[331620661,1720585870297,-151.0,0.00013808,2]
[331620662,1720585870306,-151.0,0.00013808,2]
[331620663,1720585870315,-591.95,0.00013808,2]
[331620664,1720585870324,-500.0,0.00013808,2]
[331620665,1720585870333,-955.81,0.00013808,2]
[331620666,1720585870342,-500.0,0.00013808,2]
[331620667,1720585870352,-500.0,0.00013808,2]
[331620668,1720585870361,-1609.93,0.00013808,2]
[331620669,1720585870371,-881.57,0.00013808,2]
[331620670,1720585870380,-769.36,0.00013808,2]
[331620671,1720585870389,-1502.36,0.00013808,2]
[331620672,1720585870398,-500.0,0.00013808,2]
[331620673,1720585870407,-500.0,0.00013808,2]
[331620674,1720585870416,-1140.23,0.00013808,2]
[331620675,1720585870425,-500.0,0.00013808,2]
[331620676,1720585870434,-500.0,0.00013808,2]
[331620677,1720585870443,-1317.89,0.00013808,2]
[331620678,1720585870453,-500.0,0.00013808,2]
[331620679,1720585870464,-500.0,0.00013808,2]
[331620680,1720585870474,-500.0,0.00013808,2]
[331620681,1720585870483,-598.9,0.00013808,2]
[331620682,1720585870492,-582.94,0.00013808,2]
[331620683,1720585870501,-974.55,0.00013808,2]
[331620684,1720585870510,-664.53,0.00013808,2]
[331620685,1720585870520,-577.31,0.00013808,2]
[331620686,1720585870530,-500.0,0.00013808,2]
[331620687,1720585870539,-533.52,0.00013808,2]
[331620688,1720585870548,-511.19,0.00013808,2]
[331620689,1720585870558,-790.55,0.00013808,2]
[331620690,1720585870567,-1568.25,0.00013808,2]
[331620691,1720585870576,-500.0,0.00013808,2]
[331620692,1720585870586,-500.0,0.00013808,2]
[331620693,1720585870595,-151.0,0.00013808,2]
[331620694,1720585870604,-151.0,0.00013808,2]